bitfinex/quotes_ETHUSD_20240819
["timestamp","ask_amount","ask_price","bid_price","bid_amount"]
[1724076534864,2.9634,2585.2,2584.8,3.0]
[1724076535020,2.9634,2585.2,2584.6,6.86904]
[1724076535222,2.9634,2585.2,2584.7,3.8689]
[1724076535561,2.9634,2585.2,2584.8,3.0]
[1724076535717,2.9634,2585.2,2584.7,3.0]
[1724076536060,2.9634,2585.2,2584.8,3.8687]
[1724076536362,2.9634,2585.2,2584.4,3.927345]
[1724076536363,3.2284,2585.8,2585.0,3.86846]
[1724076536568,3.2284,2585.8,2585.2,3.86811]
[1724076536938,3.2284,2585.8,2585.0,3.86838]
[1724076537141,3.2284,2585.8,2585.1,3.0]
[1724076537436,3.2284,2585.8,2585.2,3.86816]
[1724076537637,3.2284,2585.8,2585.3,3.868]
[1724076537840,3.2284,2585.8,2585.2,3.86816]
[1724076538040,3.2284,2585.8,2585.2,7.73624]
[1724076538242,3.2284,2585.8,2585.4,3.86784]
[1724076538442,3.2284,2585.8,2585.5,3.0]
[1724076538656,3.2284,2586.6,2585.8,3.86717]
[1724076538977,3.2284,2586.6,2585.6,3.86745]
[1724076539155,3.0243,2586.5,2585.9,3.0]
[1724076539363,3.34714,2586.5,2585.9,3.0]
[1724076539558,3.34714,2586.5,2585.7,3.0]
[1724076539734,6.89591,2586.2,2585.7,3.0]
[1724076539935,6.89625,2586.0,2584.8,3.86864]
[1724076540269,3.0292,2585.9,2584.8,3.86864]
[1724076540438,3.2121,2585.8,2584.6,3.86898]
[1724076540724,0.32121,2585.7,2585.0,3.86844]
[1724076541335,3.2253,2585.5,2584.5,3.86913]
[1724076541617,3.2253,2585.5,2584.5,3.86911]
[1724076541618,3.2253,2585.4,2584.5,3.86911]
[1724076541822,3.2253,2585.4,2584.2,3.86959]
[1724076542022,3.0719,2585.3,2584.4,3.86927]
[1724076542377,3.0719,2585.3,2584.2,3.86959]
[1724076542378,6.93995,2585.3,2584.2,7.73916]
[1724076542606,1.080784,2585.2,2584.4,3.86924]
[1724076542818,3.0719,2585.3,2584.4,3.86924]
[1724076543027,3.0719,2585.3,2584.5,3.0]
[1724076543237,2.9775,2585.2,2584.3,3.0]
[1724076543374,3.671487,2585.2,2584.3,3.0]
[1724076543926,3.671487,2585.2,2584.0,39.4103]
[1724076543927,3.1057,2584.9,2584.0,0.5404]
[1724076544229,3.1057,2584.9,2583.9,3.87001]
[1724076544528,3.1057,2584.9,2584.0,3.86991]
[1724076544826,3.83983487,2584.9,2584.1,3.86978]
[1724076545030,3.1057,2584.9,2584.0,1.502006]
[1724076545239,3.83982687,2584.9,2584.0,1.502006]
[1724076545384,3.2201,2584.8,2583.9,7.28]
[1724076545582,3.2201,2584.8,2584.0,3.0]
[1724076546019,7.08898,2584.8,2584.0,3.0]
[1724076546239,3.2201,2584.5,2583.9,7.28]
[1724076546543,3.92902,2584.5,2583.9,7.28]
[1724076546885,3.86948,2584.4,2583.4,7.28]
[1724076547083,3.2201,2584.3,2583.4,7.28]
[1724076547390,3.2201,2584.3,2583.4,11.15075]
[1724076547610,3.2201,2584.3,2583.5,7.74801672]
[1724076547920,3.2201,2584.3,2583.6,3.87056]
[1724076548326,3.2201,2584.3,2583.6,3.87047]
[1724076548484,3.2201,2584.3,2583.8,3.87013]
[1724076548685,3.2201,2584.3,2583.9,3.0]
[1724076549429,3.0988,2584.9,2583.9,3.687013]
[1724076549608,3.0988,2584.9,2583.9,7.28]
[1724076549932,3.0988,2584.9,2584.2,3.86964]
[1724076550140,7.31401487,2584.9,2584.3,3.0]
[1724076550427,3.1011,2584.8,2584.0,3.0]
[1724076550626,6.96988,2584.8,2584.0,3.0]
[1724076550796,3.1011,2584.8,2584.0,3.0]
[1724076550990,3.83273149,2584.8,2584.0,3.0]
[1724076551222,6.97014,2584.7,2584.0,3.0]
[1724076551730,3.8693,2584.5,2583.5,11.15739672]
[1724076551881,3.1011,2584.4,2583.5,7.28]
[1724076552083,3.1011,2584.4,2583.7,3.87033]
[1724076552297,3.1011,2584.4,2583.6,3.87045]
[1724076552514,3.41121,2584.4,2583.6,3.87045]
[1724076552928,3.41121,2584.4,2583.7,3.87033]
[1724076553137,3.1011,2584.4,2583.9,3.87]
[1724076553427,3.1011,2584.4,2584.0,3.0]
[1724076554538,3.1011,2584.4,2583.8,3.0]
[1724076554824,3.1011,2584.4,2583.8,6.87024]
[1724076555129,3.1011,2584.4,2583.8,3.687033]
[1724076555382,3.1011,2584.4,2583.8,3.0]
[1724076555503,3.1011,2584.4,2583.5,7.28]
[1724076555504,3.1011,2584.4,2583.6,10.74088]
[1724076555846,3.1011,2584.4,2583.6,3.0]
[1724076556208,3.1011,2584.4,2583.6,6.87056]
[1724076556407,3.1011,2584.4,2583.8,3.87025]
[1724076556587,3.1011,2584.4,2583.9,3.0]
[1724076556943,3.1011,2584.4,2584.0,3.86993]
[1724076557239,3.1011,2584.4,2584.1,3.0]
[1724076557532,3.1011,2584.4,2583.8,3.87017]
[1724076557533,3.1011,2584.4,2584.0,3.0]
[1724076557734,3.1011,2584.4,2583.9,7.3986126]
[1724076557937,3.1011,2584.4,2583.9,3.0]
[1724076558137,3.1011,2584.4,2583.7,1.415056]
[1724076558138,3.1011,2584.4,2583.7,3.0]
[1724076558338,3.1011,2584.4,2583.6,3.0]
[1724076558339,3.1168,2584.3,2583.6,3.0]
[1724076558710,3.1168,2584.3,2583.6,6.87054]
[1724076558893,3.1168,2584.3,2583.6,3.0]
[1724076559535,3.1168,2584.3,2583.7,3.87033]
[1724076559741,3.1168,2584.3,2583.8,3.0]
[1724076560219,3.1168,2584.3,2583.8,0.3]
[1724076560734,3.1168,2584.3,2583.8,7.17019]
[1724076560906,3.1168,2584.3,2583.9,3.87011]
[1724076561103,3.1168,2584.3,2583.8,3.3]
[1724076561104,3.1168,2584.3,2584.0,3.0]
[1724076561304,3.1168,2584.3,2583.8,4.17024]
[1724076561305,3.1168,2584.3,2583.9,3.0]
[1724076561698,3.1168,2584.3,2583.5,11.1506]
[1724076561699,3.1168,2584.3,2583.7,6.87033]
[1724076562239,3.1168,2584.3,2583.7,3.0]
[1724076562540,3.42848,2584.3,2583.7,3.0]
[1724076563459,3.42848,2584.3,2583.6,3.0]
[1724076565110,3.42848,2584.3,2583.3,38.87089]
[1724076565111,2.918,2583.8,2583.0,3.87146]
[1724076565411,2.918,2584.0,2582.5,3.87212]
[1724076565614,6.87606,2583.6,2582.7,3.87185]
[1724076565813,3.87052,2583.7,2582.8,3.87176]
[1724076565814,3.0055,2583.5,2582.8,3.87176]
[1724076566020,4.080158,2583.5,2582.6,7.74387]
[1724076566248,3.0055,2583.3,2582.7,3.87191]
[1724076566414,3.0055,2583.3,2582.8,3.87176]
[1724076567015,3.0055,2583.3,2582.6,3.87191]
[1724076567664,3.0055,2583.3,2582.7,3.87183]
[1724076567814,3.0055,2583.3,2582.8,3.0]
[1724076568387,3.0055,2583.3,2582.9,3.8716]
[1724076568665,3.0055,2583.3,2583.0,3.0]
[1724076568871,3.0055,2583.3,2582.8,3.0]
[1724076569071,3.0055,2583.3,2582.7,3.0]
[1724076569566,3.0055,2583.3,2582.6,3.0]
[1724076570318,3.0055,2583.3,2582.7,3.87185]
[1724076570534,3.0055,2583.3,2582.8,3.0]
[1724076571074,3.0055,2583.3,2582.8,6.87176]
[1724076571384,3.0055,2583.3,2582.8,3.0]
[1724076571536,3.0055,2583.3,2582.9,3.87161]
[1724076571759,3.0055,2583.3,2583.0,3.0]
[1724076572489,3.0055,2583.3,2582.9,3.0]
[1724076573854,3.0055,2583.3,2582.6,3.0]
[1724076574258,3.0055,2583.3,2582.5,4.646584]
[1724076574259,3.0994,2583.2,2582.5,0.774454]
[1724076574503,6.97059,2583.2,2582.4,35.0]
[1724076574665,0.77831868,2583.6,2582.0,5.391]
[1724076574666,3.2135,2583.1,2582.2,3.87257]
[1724076574857,3.2135,2583.1,2582.3,0.387257]
[1724076575052,3.87148,2583.0,2582.1,3.87269]
[1724076575310,3.2135,2582.9,2582.1,3.87269]
[1724076575611,3.2135,2582.9,2582.2,3.387269]
[1724076575961,3.2135,2582.9,2582.2,0.387269]
[1724076576162,7.08513,2582.9,2582.2,0.387269]
[1724076576363,3.2135,2582.9,2582.2,0.387269]
[1724076576598,3.2135,2582.9,2582.2,7.259919]
[1724076576807,3.2135,2582.9,2582.3,1.1132719]
[1724076577976,3.2135,2582.9,2582.3,4.9857019]
[1724076578133,3.2135,2582.9,2582.4,6.87228]
[1724076578896,3.2135,2582.9,2582.4,3.0]
[1724076579127,3.2135,2582.9,2582.3,4.1132719]
[1724076579332,3.2135,2582.9,2582.4,3.87233]
[1724076579536,3.2135,2582.9,2582.5,3.0]
[1724076579890,3.2135,2582.9,2582.4,3.0]
[1724076580092,3.2135,2582.9,2582.6,7.74403]
[1724076580387,3.2135,2582.9,2582.7,3.0]
[1724076580615,3.2135,2582.9,2582.7,6.87189]
[1724076581131,2.9986,2583.7,2582.9,3.87153]
[1724076581334,2.9986,2583.7,2583.0,3.774328]
[1724076581627,0.77831868,2584.1,2582.4,9.26334]
[1724076581628,2.9986,2583.4,2582.9,3.0]
[1724076581834,2.9986,2583.2,2582.7,3.0]
[1724076582003,2.9986,2583.2,2582.6,6.87205]
[1724076582643,2.9986,2583.2,2582.6,6.87206]
[1724076582806,2.9986,2583.2,2582.6,7.946488]
[1724076583011,2.9986,2583.2,2582.7,3.87182]
[1724076583325,2.9986,2583.2,2582.8,6.87174]
[1724076583525,2.9986,2583.2,2582.8,3.87174]
[1724076583694,2.9986,2583.2,2582.9,3.0]
[1724076583898,2.9986,2583.2,2582.3,3.8725]
[1724076583899,2.9986,2583.2,2583.0,3.8714]
[1724076584137,3.87012,2583.9,2583.1,3.0]
[1724076584138,3.0816,2583.8,2583.1,3.0]
[1724076584797,2.985,2583.7,2583.1,3.0]
[1724076584998,2.985,2583.6,2583.0,3.0]
[1724076587850,2.985,2583.6,2583.0,6.87145]
[1724076588545,2.985,2583.6,2583.0,7.945745]
[1724076590001,2.985,2583.6,2583.0,4.074295]
[1724076590198,3.0345,2583.5,2583.0,3.0]
[1724076590469,3.0345,2583.5,2582.8,6.87168]
[1724076590740,3.0345,2583.5,2582.8,3.0]
[1724076591203,3.0345,2583.5,2582.8,6.87174]
[1724076592040,3.0345,2583.5,2582.9,3.87158]
[1724076592344,3.0345,2583.5,2583.0,6.87135]
[1724076592562,3.0345,2583.5,2583.0,4.374293]
[1724076592853,1.98839795,2584.2,2583.5,3.87064]
[1724076592854,2.9706,2583.9,2583.5,3.87064]
[1724076593070,2.9706,2583.9,2583.5,3.87062]
[1724076593676,2.9706,2583.9,2583.5,7.74125]
[1724076593823,2.9706,2583.9,2583.6,3.87739672]
[1724076595139,2.9706,2583.9,2583.4,35.0]
[1724076595373,2.9706,2583.9,2583.5,3.0]
[1724076595571,2.9706,2583.9,2582.8,9.2627]
[1724076595572,2.9706,2583.9,2583.6,3.87046]
[1724076595867,2.9706,2583.9,2583.7,39.257396]
[1724076596025,2.9706,2583.9,2583.7,35.387046]
[1724076596226,2.9706,2583.9,2583.7,35.0]
[1724076596451,3.1015,2584.2,2583.9,3.87003]
[1724076596657,3.1015,2584.5,2584.1,3.86981]
[1724076597077,3.1015,2584.5,2584.2,3.0]
[1724076597270,3.1015,2584.5,2584.3,3.8695]
[1724076597425,3.1015,2584.5,2584.4,3.86937]
[1724076597631,3.1015,2585.0,2584.5,3.86916]
[1724076598332,3.1015,2585.0,2584.6,3.86906]
[1724076598535,3.1015,2585.0,2584.7,6.86892]
[1724076598792,3.1627,2585.4,2584.9,3.86862]
[1724076598995,3.1627,2585.4,2585.0,3.0]
[1724076599149,3.1627,2585.4,2584.7,6.86884]
[1724076599150,3.55680187,2585.4,2584.8,3.0]
[1724076599489,3.55680187,2585.4,2584.9,3.86854]
[1724076599626,3.1627,2585.4,2585.0,6.86839]
[1724076599832,3.1627,2585.4,2585.0,3.86839]
[1724076600128,3.1627,2585.4,2585.2,3.86815]
[1724076600358,3.0714,2585.7,2585.2,0.78138707]
[1724076600582,3.0714,2585.7,2585.1,3.0]
[1724076600785,3.0714,2585.7,2584.8,3.0]
[1724076600957,3.0023,2585.5,2584.8,3.0]
[1724076601172,3.0023,2585.4,2584.8,3.0]
[1724076601383,3.0023,2585.2,2584.5,3.0]
[1724076601761,3.0023,2585.2,2584.5,6.86912]
[1724076602315,3.0023,2585.2,2584.5,3.0]
[1724076602514,3.0023,2585.2,2584.6,3.86893]
[1724076602816,3.0023,2585.2,2584.8,3.86867]
[1724076603030,0.77831868,2585.7,2584.7,0.55]
[1724076603031,3.1411,2585.5,2584.7,0.55]
[1724076603213,3.1411,2585.5,2585.1,3.86824]
[1724076603358,0.77831868,2586.0,2585.3,3.86801]
[1724076603359,3.0638,2586.0,2585.3,3.86801]
[1724076603696,3.0638,2586.0,2585.5,3.86768]
[1724076604509,3.0638,2586.0,2585.4,3.0]
[1724076604808,3.2001,2586.3,2585.7,3.8673]
[1724076605108,3.2001,2586.3,2585.8,3.0]
[1724076605294,3.2001,2586.3,2585.8,3.86724]
[1724076605504,3.2001,2586.3,2585.7,6.86741]
[1724076605505,3.2001,2586.3,2585.9,3.0]
[1724076605823,3.2001,2586.3,2585.7,3.0]
[1724076605824,3.2001,2586.3,2586.0,0.3]
[1724076606007,3.2001,2586.3,2586.0,3.86695]
[1724076606176,3.2001,2586.3,2586.1,3.0]
[1724076606988,3.148,2586.9,2586.1,6.86682]
[1724076607186,3.849348,2586.9,2586.3,3.86647]
[1724076607385,3.148,2586.9,2586.4,3.0]
[1724076608123,3.148,2586.9,2586.5,3.86622]
[1724076608422,3.2471,2587.5,2586.4,3.0]
[1724076608716,3.2471,2587.5,2586.5,4.16615]
[1724076608922,3.2471,2587.5,2586.6,3.0]
[1724076609129,3.0062,2587.4,2586.6,3.0]
[1724076609779,3.0062,2587.3,2586.6,3.0]
[1724076611293,3.0062,2587.3,2586.6,6.86598]
[1724076611595,3.8645,2587.7,2586.6,3.0]
[1724076611596,7.09852,2587.2,2586.6,3.0]
[1724076611812,3.2332,2587.2,2586.3,6.86652]
[1724076612116,3.2332,2587.2,2586.5,3.86614]
[1724076612322,3.2332,2587.2,2586.3,6.86645]
[1724076612323,3.2332,2587.2,2586.6,7.252544]
[1724076612647,3.2332,2587.2,2586.7,3.07730759]
[1724076612935,2.9663,2587.9,2587.1,3.86529]
[1724076613133,2.9663,2587.9,2587.3,3.86502]
[1724076613277,2.9663,2587.9,2587.4,3.0]
[1724076614025,2.9663,2587.9,2587.2,6.8651]
[1724076614319,2.9663,2587.9,2587.2,3.0]
[1724076614519,2.9663,2587.9,2587.3,4.551504]
[1724076614722,2.9663,2587.9,2587.4,3.0]
[1724076614934,2.9663,2587.9,2587.4,6.86479]
[1724076615077,2.9663,2587.9,2587.5,3.86464]
[1724076615283,2.9663,2587.9,2587.6,3.0]
[1724076615524,2.9663,2587.9,2587.6,3.986464]
[1724076615783,2.9663,2587.9,2587.6,3.0]
[1724076615976,2.9663,2587.9,2587.3,4.551494]
[1724076615977,2.9663,2587.9,2587.4,3.0]
[1724076616179,2.9663,2587.9,2587.3,3.86492]
[1724076616481,2.9663,2587.9,2587.4,3.386492]
[1724076617132,2.9663,2587.9,2587.5,3.0]
[1724076617337,2.9663,2587.9,2587.2,6.86514]
[1724076617572,2.9663,2587.9,2587.2,3.0]
[1724076617776,0.1243754,2588.0,2587.5,3.86469]
[1724076617969,0.1243754,2588.0,2587.6,3.0]
[1724076618338,0.1243754,2588.0,2587.5,6.86472]
[1724076619185,0.1243754,2588.0,2587.5,3.0]
[1724076619396,0.1243754,2588.0,2587.9,3.86413]
[1724076619547,0.1243754,2588.0,2587.9,3.386413]
[1724076619990,0.1243754,2588.0,2587.9,0.386413]
[1724076620195,0.1243754,2588.0,2587.9,3.386413]
[1724076620354,0.1243754,2588.0,2587.9,7.250543]
[1724076621203,0.1243754,2588.0,2587.9,11.114673]
[1724076621353,0.1243754,2588.0,2587.9,11.664673]
[1724076621554,0.1243754,2588.0,2587.9,16.01182277]
[1724076621991,5.4e-06,2588.0,2587.9,19.392933]
[1724076622151,0.1499,2588.9,2587.9,18.701003]
[1724076622356,0.1499,2588.9,2588.8,16.97937]
[1724076622669,0.1499,2588.9,2588.8,3.0]
[1724076623153,0.1499,2588.9,2588.6,3.0]
[1724076623353,0.1499,2588.9,2588.6,3.686314]
[1724076623553,0.1499,2588.9,2588.7,3.0]
[1724076623866,0.1499,2588.9,2588.0,3.3471533]
[1724076623867,0.1499,2588.9,2588.2,7.28]
[1724076624072,3.024,2588.8,2588.0,2.7971533]
[1724076624896,3.024,2588.8,2587.8,19.67]
[1724076624897,3.0602,2588.6,2587.8,7.28]
[1724076625105,3.86347,2588.4,2587.8,7.28]
[1724076625308,3.0602,2588.5,2587.8,7.28]
[1724076625798,3.0602,2588.5,2587.1,12.83027977]
[1724076625799,3.0602,2588.2,2587.1,9.25626]
[1724076626009,3.0602,2588.2,2587.3,4.551411]
[1724076626914,3.0602,2588.2,2587.6,3.8645]
[1724076627095,3.0602,2588.2,2587.7,3.86443]
[1724076627402,3.0602,2588.2,2587.8,3.8642]
[1724076627554,3.0602,2588.2,2587.4,0.48301977]
[1724076627902,3.0602,2588.2,2587.3,4.551431]
[1724076628103,3.86384,2588.1,2587.3,0.686531]
[1724076628319,6.90488,2588.0,2586.9,3.86553]
[1724076628467,3.86414,2587.9,2586.9,3.86553]
[1724076628665,6.89414,2587.7,2586.7,8.21466977]
[1724076628916,3.0297,2587.2,2586.2,0.48301977]
[1724076629119,3.0297,2587.2,2586.4,3.86629]
[1724076629416,3.0297,2587.2,2586.0,7.73373]
[1724076629595,9.25501,2588.0,2586.1,4.61059801]
[1724076629596,2.9925,2586.9,2586.1,4.61059801]
[1724076630184,2.9925,2586.9,2586.1,0.74378801]
[1724076630386,6.8582,2586.9,2585.9,0.45980006]
[1724076630587,6.8582,2586.9,2585.8,3.86719]
[1724076630796,3.0733,2586.6,2585.8,3.86719]
[1724076631083,3.0733,2586.6,2585.7,3.86733]
[1724076631283,3.0733,2586.6,2585.8,3.86725]
[1724076631902,3.0733,2586.6,2585.8,3.86719]
[1724076632121,3.0733,2586.6,2585.7,35.48092669]
[1724076632122,3.86639,2586.4,2585.7,0.48092669]
[1724076632273,3.86634,2586.5,2585.5,3.86758]
[1724076632468,3.0733,2586.6,2585.6,8.508565]
[1724076632670,3.0733,2586.6,2585.8,3.86719]
[1724076632913,3.0733,2586.6,2585.9,3.86704]
[1724076633119,3.0733,2586.6,2585.8,3.86719]
[1724076633273,3.0733,2586.6,2585.8,0.386719]
[1724076633477,3.0733,2586.6,2585.8,3.386719]
[1724076634019,3.0733,2586.6,2585.9,3.86698]
[1724076634184,3.0733,2586.6,2586.0,3.0]
[1724076634391,3.0733,2586.6,2586.1,4.16674]
[1724076634606,3.0733,2586.6,2586.2,6.86658]
[1724076634806,3.0733,2586.6,2586.2,3.0]
[1724076635043,3.0733,2586.6,2585.7,3.86733]
[1724076635044,6.93939,2586.6,2585.7,3.86733]
[1724076635243,4.560008,2586.6,2585.8,3.0]
[1724076635395,4.560008,2586.6,2585.2,4.32687714]
[1724076635396,3.214,2586.2,2584.8,3.8687]
[1724076635599,3.214,2586.2,2584.7,8.7716]
[1724076635600,3.5354,2586.2,2585.5,3.86758]
[1724076635800,3.214,2586.2,2585.5,3.86763]
[1724076635997,3.214,2586.2,2585.1,38.86829]
[1724076635998,3.214,2586.2,2585.8,3.86718]
[1724076636198,3.214,2586.2,2585.8,0.386718]
[1724076636434,3.214,2586.2,2585.5,3.86758]
[1724076636648,3.214,2586.2,2585.3,3.86787]
[1724076636847,3.214,2586.2,2585.5,3.8677]
[1724076637200,3.214,2586.2,2585.4,0.386787]
[1724076637514,3.214,2586.2,2585.5,3.86768]
[1724076637727,3.214,2586.2,2585.7,3.86741]
[1724076638110,3.214,2586.2,2585.8,3.0]
[1724076638326,3.214,2586.2,2585.4,3.386787]
[1724076638631,3.922053,2586.2,2585.1,38.86824]
[1724076638832,3.1206,2586.4,2585.1,35.0]
[1724076639147,0.7,2587.0,2584.9,5.13256]
[1724076639148,3.1206,2586.0,2584.9,5.13256]
[1724076639328,3.1206,2586.0,2585.1,3.86822]
[1724076639644,0.7,2587.0,2584.7,3.86883]
[1724076639645,3.86734,2585.8,2584.7,3.86883]
[1724076639812,6.97324,2585.7,2584.8,0.386883]
[1724076640004,3.1058,2585.7,2585.0,3.86846]
[1724076640204,3.8669,2586.1,2585.1,0.386846]
[1724076640205,2.9686,2586.1,2585.1,0.386846]
[1724076640447,2.9686,2586.1,2585.8,3.86726]
[1724076640608,2.9686,2586.1,2585.8,3.86719]
[1724076640796,2.9686,2586.1,2585.8,3.86718]
[1724076641000,2.9686,2586.1,2585.8,4.253868]
[1724076641462,2.9686,2586.1,2585.9,6.86704]
[1724076641750,2.9686,2586.1,2585.9,3.0]
[1724076642458,7.07369,2586.8,2585.9,3.0]
[1724076642752,8.02511,2586.7,2585.9,3.0]
[1724076642970,3.0652,2586.7,2585.9,3.0]
[1724076643118,3.0652,2586.7,2585.8,3.386718]
[1724076643464,3.0652,2586.7,2585.6,3.86748]
[1724076643465,3.0363,2586.5,2585.6,3.86748]
[1724076643775,3.0363,2586.5,2585.9,3.0]
[1724076645237,3.726533,2586.5,2585.8,3.0]
[1724076645439,3.1514,2586.1,2585.1,4.255156]
[1724076645655,3.1514,2586.1,2585.0,7.28]
[1724076645656,7.01862,2585.9,2585.0,11.14837]
[1724076645825,3.1514,2585.9,2585.0,7.28]
[1724076646031,3.1514,2585.9,2585.3,3.86794]
[1724076646357,3.1514,2585.9,2585.4,3.86787]
[1724076646718,3.1514,2585.9,2585.1,35.728]
[1724076646965,7.48,2586.7,2585.7,3.86733]
[1724076646966,3.1111,2586.5,2585.7,3.86733]
[1724076647157,3.1111,2586.5,2585.8,3.0]
[1724076648262,3.1111,2586.5,2585.7,3.0]
[1724076648263,6.9774,2586.5,2585.7,3.0]
[1724076648562,3.9222714,2586.5,2585.7,6.86741]
[1724076648769,3.9222714,2586.5,2585.8,3.86725]
[1724076649066,3.1111,2586.5,2586.0,3.86688]
[1724076649265,3.1111,2586.5,2586.1,3.0]
[1724076649591,3.1111,2586.5,2585.9,6.86712]
[1724076649592,3.1111,2586.5,2585.9,3.686731]
[1724076649787,11.34483,2587.5,2586.0,0.62732284]
[1724076649999,3.0255,2587.4,2586.6,3.866]
[1724076650203,3.0255,2587.4,2586.8,3.86576]
[1724076650492,3.2033,2587.3,2586.7,3.0]
[1724076650673,3.50585,2587.3,2586.6,3.0]
[1724076651388,3.50585,2587.3,2586.6,6.86606]
[1724076651389,3.1292,2587.2,2586.6,6.86606]
[1724076652285,3.1292,2587.2,2586.6,3.0]
[1724076652492,3.1292,2587.2,2586.5,3.0]
[1724076652783,3.1292,2587.2,2586.6,3.86598]
[1724076653099,3.1292,2587.2,2586.7,3.686598]
[1724076653262,3.1292,2587.2,2586.5,3.0]
[1724076653440,3.1292,2587.2,2586.6,3.86607]
[1724076653637,3.1292,2587.2,2586.7,3.0]
[1724076654461,6.99438,2587.2,2586.5,3.0]
[1724076654649,3.1336,2587.1,2586.5,3.0]
[1724076654854,3.1336,2586.8,2586.2,7.28]
[1724076655077,3.1336,2586.8,2586.2,3.86658]
[1724076655240,3.1336,2586.8,2586.2,4.59458]
[1724076655441,3.1336,2586.8,2586.2,0.728]
[1724076655643,3.1336,2586.8,2586.3,3.86651]
[1724076655853,3.1336,2586.8,2586.0,3.8669]
[1724076656344,3.1336,2586.8,2586.1,3.0]
[1724076656345,6.99938,2586.8,2586.1,3.0]
[1724076656548,3.833511,2586.8,2586.0,3.0]
[1724076656846,3.1336,2586.8,2586.0,3.0]
[1724076657047,3.1336,2586.8,2586.1,3.86674]
[1724076657247,3.1336,2586.8,2586.0,6.86688]
[1724076657248,3.1336,2586.8,2586.2,3.0]
[1724076657447,3.1336,2586.8,2586.0,10.73377]
[1724076657685,3.1336,2586.8,2586.0,3.0]
[1724076657848,6.99938,2586.8,2586.0,3.0]
[1724076658065,6.99938,2586.8,2585.9,3.0]
[1724076658392,3.1336,2586.8,2585.9,3.0]
[1724076658564,3.1336,2586.8,2586.0,3.87739672]
[1724076658753,3.1336,2586.8,2586.1,3.0]
[1724076659150,3.1336,2586.8,2586.2,3.86656]
[1724076659355,3.1336,2586.8,2586.4,3.86627]
[1724076659584,3.1336,2586.8,2586.4,4.939546]
[1724076659792,3.1336,2586.8,2586.5,3.0]
[1724076660147,3.1336,2586.8,2586.4,3.86637]
[1724076660450,3.1336,2586.8,2586.5,3.0]
[1724076660654,3.1093,2587.4,2586.5,2.97]
[1724076660853,2.9831,2587.2,2586.5,2.97]
[1724076661252,2.9831,2586.9,2586.2,7.28]
[1724076661452,2.9831,2586.9,2586.2,11.14666]
[1724076661649,2.9831,2586.9,2586.4,3.8663]
[1724076662094,2.9831,2586.9,2586.4,7.73259]
[1724076662295,2.9831,2586.9,2586.4,3.86636]
[1724076662470,2.9831,2586.9,2586.5,0.386636]
[1724076662667,2.9831,2586.9,2586.6,3.866]
[1724076662884,2.9831,2586.9,2586.7,3.0]
[1724076663084,2.9831,2586.9,2586.5,6.8662]
[1724076663305,2.9831,2586.9,2586.7,3.86589]
[1724076663593,2.9831,2586.9,2586.8,3.0]
[1724076663997,2.9831,2586.9,2586.7,3.0]
[1724076664199,2.9831,2586.9,2586.7,6.8659]
[1724076664888,2.9831,2586.9,2586.7,3.0]
[1724076665056,2.9831,2586.9,2586.7,6.86591]
[1724076665656,2.9831,2586.9,2586.7,3.0]
[1724076665863,3.1324,2587.5,2586.7,3.686595]
[1724076666204,6.99721,2587.5,2586.7,3.0]
[1724076666353,3.2186,2587.4,2586.7,3.0]
[1724076666556,0.708341,2587.3,2586.8,3.8657]
[1724076666756,3.2186,2587.4,2586.9,3.86551]
[1724076666956,3.2186,2587.4,2586.7,6.86582]
[1724076667195,3.2186,2587.4,2586.9,3.86555]
[1724076667408,3.2186,2587.4,2587.2,3.86518]
[1724076667599,3.2186,2587.4,2587.1,3.86532]
[1724076668257,3.2186,2587.4,2587.2,3.86517]
[1724076668469,3.0783,2587.9,2587.2,3.86517]
[1724076668720,3.0783,2587.9,2587.3,3.0]
[1724076668875,3.0783,2587.9,2587.0,10.73079]
[1724076668876,3.0783,2587.9,2587.1,35.0]
[1724076669073,3.0783,2587.9,2587.2,3.0]
[1724076669414,3.252,2587.6,2587.2,3.0]
[1724076669614,3.252,2587.6,2586.9,6.86562]
[1724076669827,3.86475,2587.5,2586.9,3.0]
[1724076670131,0.711675,2587.4,2586.7,3.0]
[1724076670418,3.252,2587.6,2587.0,3.86547]
[1724076670630,3.252,2587.6,2587.1,3.86526]
[1724076670772,3.252,2587.6,2587.4,3.86479]
[1724076670988,3.252,2587.6,2587.5,3.0]
[1724076671218,3.252,2587.6,2586.8,7.28]
[1724076671429,3.252,2587.6,2586.9,3.0]
[1724076671736,3.5772,2587.6,2586.9,3.0]
[1724076672158,3.5772,2587.6,2586.4,5.379]
[1724076672159,3.092,2587.3,2586.5,3.86622]
[1724076672321,3.092,2587.3,2586.4,11.14626]
[1724076672322,3.092,2587.2,2586.4,7.28]
[1724076672526,3.1294,2586.9,2586.0,7.28]
[1724076672840,4.19204111,2586.8,2586.0,11.14691]
[1724076672995,1.06266322,2586.7,2586.2,3.86666]
[1724076673197,3.1294,2586.8,2586.0,12.261601]
[1724076673198,3.90771868,2586.8,2586.0,4.981601]